fUST/lending_fUST_20260429
["ID","MTS","AMOUNT","RATE_DAILY","PERIOD"]
[421299831,1777393834059,-1409.0,0.00012903,2]
[421299833,1777393834076,-646.0,0.00012903,2]
[421299834,1777393834094,-2211.0,0.00012903,2]
[421299836,1777393834108,-185.0,0.00012903,2]
[421299837,1777393834124,-442.0,0.00012903,2]
[421299840,1777393834148,-693.3919763,0.00012926,2]
[421299842,1777393834159,-719.04747942,0.00012981,2]
[421299844,1777393834171,-477.26543042,0.00013089,2]
[421299847,1777393834187,-587.0,0.0001339,2]
[421299849,1777393834204,-864.0,0.00013428,2]
[421299851,1777393834217,-500.0,0.00013698,2]
[421299853,1777393834228,-1000.0,0.00013699,2]
[421299855,1777393834242,-180.0,0.0001383,2]
[421299856,1777393834254,-156.587,0.0001391,2]
[421299858,1777393834266,-291.24637229,0.00014177,2]
[421299860,1777393834293,-274.49862,0.00014367,2]
[421299862,1777393834308,-823.0,0.00014713,2]
[421299864,1777393834338,-1000.0,0.00014771,2]
[421299867,1777393834366,-501.729423,0.00015,2]
[421299869,1777393834381,-500.0,0.00015,2]
[421299871,1777393834392,-1500.0,0.00015,2]
[421299873,1777393834403,-687.98849038,0.00015077,2]
[421299874,1777393834414,-687.98849038,0.00015077,2]
[421299876,1777393834429,-687.98849038,0.00015077,2]
[421299878,1777393834451,-687.98849038,0.00015077,2]
[421299880,1777393834466,-687.98849038,0.00015077,2]
[421299882,1777393834484,-687.98849038,0.00015077,2]
[421299885,1777393834500,-687.98849038,0.00015077,2]
[421299887,1777393834512,-687.98849038,0.00015077,2]
[421299889,1777393834525,-687.98849038,0.00015077,2]
[421299891,1777393834537,-687.98849038,0.00015077,2]
[421299893,1777393834549,-687.98849038,0.00015077,2]
[421299895,1777393834559,-500.0,0.00015077,2]
[421299897,1777393834570,-500.0,0.00015077,2]
[421299899,1777393834581,-354.24100947,0.00015077,2]
[421299901,1777393834597,-500.0,0.00015077,2]
[421299903,1777393834610,-647.48195958,0.00015077,2]
[421299905,1777393834623,-500.0,0.00015077,2]
[421299907,1777393834634,-500.0,0.00015077,2]
[421299909,1777393834645,-500.0,0.00015077,2]
[421299911,1777393834663,-500.0,0.00015077,2]
[421299913,1777393834685,-500.0,0.00015077,2]
[421299915,1777393834696,-509.1059347,0.00015077,2]
[421299916,1777393834716,-500.0,0.00015077,2]
[421299918,1777393834729,-500.0,0.00015077,2]
[421299920,1777393834741,-500.0,0.00015077,2]
[421299922,1777393834754,-500.0,0.00015077,2]
[421299924,1777393834767,-500.0,0.00015077,2]
[421299926,1777393834778,-163.7375505,0.00015077,2]
[421299929,1777393834793,-500.0,0.00015077,2]
[421299930,1777393834806,-500.0,0.00015077,2]
[421299932,1777393834823,-687.98849038,0.00015077,2]
[421299934,1777393834839,-500.0,0.00015077,2]
[421299935,1777393834856,-500.0,0.00015077,2]
[421299937,1777393834875,-500.0,0.00015077,2]
[421299939,1777393834894,-500.0,0.00015077,2]
[421299940,1777393834907,-500.0,0.00015077,2]
[421299942,1777393834929,-500.0,0.00015077,2]
[421299944,1777393834954,-500.0,0.00015077,2]
[421299946,1777393834964,-500.0,0.00015077,2]
[421299948,1777393834978,-500.0,0.00015077,2]
[421299950,1777393834989,-637.42683999,0.00015077,2]
[421299952,1777393835002,-500.0,0.00015077,2]
[421299954,1777393835013,-433.47894242,0.00015077,2]
[421299956,1777393835025,-500.0,0.00015077,2]
[421299958,1777393835037,-500.0,0.00015077,2]
[421299960,1777393835050,-500.0,0.00015077,2]
[421299962,1777393835063,-500.0,0.00015077,2]
[421299964,1777393835074,-218.4579194,0.00015077,2]
[421299966,1777393835091,-500.0,0.00015077,2]
[421299967,1777393835104,-14310.58697668,0.00015078,2]
[421300010,1777393838732,-500.0,0.00015077,2]
[421300011,1777393838742,-500.0,0.00015077,2]
[421300012,1777393838752,-500.0,0.00015077,2]
[421300013,1777393838762,-500.0,0.00015077,2]
[421300014,1777393838771,-500.0,0.00015077,2]
[421300015,1777393838780,-500.0,0.00015077,2]
[421300016,1777393838790,-687.98849038,0.00015077,2]
[421300017,1777393838800,-500.0,0.00015077,2]
[421300018,1777393838810,-500.0,0.00015077,2]
[421300019,1777393838819,-500.0,0.00015077,2]
[421300020,1777393838828,-500.0,0.00015077,2]
[421300021,1777393838837,-500.0,0.00015077,2]
[421300022,1777393838846,-650.0,0.00015077,2]
[421300023,1777393838856,-500.0,0.00015077,2]
[421300024,1777393838865,-249873.53923851,0.00015078,2]
[421300025,1777393838893,-111984.44625937,0.00015078,2]
[421300053,1777393843699,-2166.65883822,0.00015078,2]
[421300070,1777394054968,1000.0,0.00011,30]
[421300072,1777395032751,-3795.81476826,0.00012615,2]
[421300073,1777395032760,-598.0,0.00012615,2]
[421300074,1777395032770,-209.29390511,0.00012715,2]
[421300075,1777395032779,-501.0175668,0.00012815,2]
[421300076,1777395032789,-300.0,0.00013512,2]
[421300077,1777395032799,-300.0,0.00013512,2]
[421300078,1777395032809,-300.0,0.00013513,2]
[421300079,1777395032818,-300.0,0.00013513,2]
[421300080,1777395032827,-300.0,0.00013513,2]
[421300081,1777395032837,-300.0,0.00013513,2]
[421300082,1777395032846,-300.0,0.00013513,2]
[421300083,1777395032855,-300.0,0.00013513,2]
[421300085,1777395032865,-300.0,0.00013513,2]
[421300087,1777395032874,-300.0,0.00013513,2]
[421300089,1777395032883,-300.0,0.00013513,2]
[421300091,1777395032893,-300.0,0.00013513,2]
[421300093,1777395032902,-300.0,0.00013513,2]
[421300095,1777395032912,-300.0,0.00013513,2]
[421300096,1777395032921,-300.0,0.00013513,2]
[421300098,1777395032931,-300.0,0.00013513,2]
[421300100,1777395032940,-300.0,0.00013513,2]
[421300102,1777395032949,-501.13232078,0.00013698,2]
[421300104,1777395032961,-1000.0,0.00013699,2]
[421300106,1777395032970,-234.96257581,0.0001469,2]
[421300108,1777395032980,-234.96257579,0.00014692,2]
[421300110,1777395032989,-234.96257579,0.00014695,2]
[421300112,1777395032998,-500.0,0.00014697,2]
[421300114,1777395033007,-234.96257579,0.00014697,2]
[421300116,1777395033017,-500.0,0.00014697,2]
[421300117,1777395033027,-500.0,0.00014697,2]
[421300119,1777395033036,-500.0,0.00014697,2]
[421300120,1777395033045,-500.0,0.00014697,2]
[421300121,1777395033054,-500.0,0.00014697,2]
[421300122,1777395033064,-500.0,0.00014697,2]
[421300123,1777395033073,-500.0,0.00014697,2]
[421300124,1777395033082,-291.49518469,0.00014697,2]
[421300125,1777395033092,-249.04902619,0.00014697,2]
[421300126,1777395033101,-500.0,0.00014697,2]
[421300127,1777395033111,-500.0,0.00014697,2]
[421300128,1777395033120,-500.0,0.00014697,2]
[421300129,1777395033130,-500.0,0.00014697,2]
[421300130,1777395033140,-500.0,0.00014697,2]
[421300131,1777395033149,-500.0,0.00014697,2]
[421300132,1777395033158,-500.0,0.00014697,2]
[421300133,1777395033169,-500.0,0.00014697,2]
[421300134,1777395033177,-500.0,0.00014697,2]
[421300135,1777395033187,-500.0,0.00014697,2]
[421300136,1777395033196,-500.0,0.00014697,2]
[421300137,1777395033206,-500.0,0.00014697,2]
[421300138,1777395033215,-500.0,0.00014697,2]
[421300139,1777395033224,-500.0,0.00014697,2]
[421300140,1777395033234,-273.06712214,0.00014697,2]
[421300141,1777395033243,-500.0,0.00014697,2]
[421300142,1777395033252,-500.0,0.00014697,2]
[421300143,1777395033262,-519.4496946,0.00014697,2]
[421300144,1777395033271,-500.0,0.00014697,2]
[421300145,1777395033280,-500.0,0.00014697,2]
[421300146,1777395033290,-500.0,0.00014697,2]
[421300147,1777395033299,-500.0,0.00014697,2]
[421300148,1777395033308,-500.0,0.00014697,2]
[421300149,1777395033318,-500.0,0.00014697,2]
[421300150,1777395033327,-500.0,0.00014697,2]
[421300151,1777395033336,-500.0,0.00014697,2]
[421300152,1777395033345,-500.0,0.00014697,2]
[421300153,1777395033354,-500.0,0.00014697,2]
[421300154,1777395033364,-500.0,0.00014697,2]
[421300155,1777395033373,-500.0,0.00014697,2]
[421300156,1777395033382,-500.0,0.00014697,2]
[421300157,1777395033392,-500.0,0.00014697,2]
[421300158,1777395033401,-500.0,0.00014697,2]
[421300159,1777395033412,-500.0,0.00014697,2]
[421300160,1777395033421,-500.0,0.00014697,2]
[421300161,1777395033430,-500.0,0.00014697,2]
[421300162,1777395033439,-2214.31494407,0.00014697,2]
[421300163,1777395033449,-241.15311144,0.00014697,2]
[421300164,1777395033458,-581.26133749,0.00014697,2]
[421300165,1777395033468,-2214.31494407,0.00014697,2]
[421300166,1777395033477,-483.24373236,0.00014697,2]
[421300167,1777395033486,-2214.31494407,0.00014697,2]
[421300168,1777395033495,-2214.31494407,0.00014697,2]
[421300169,1777395033505,-2214.31494407,0.00014697,2]
[421300170,1777395033514,-2214.31494407,0.00014697,2]
[421300171,1777395033523,-2214.31494407,0.00014697,2]
[421300172,1777395033533,-2214.31494407,0.00014697,2]
[421300173,1777395033542,-2214.31494407,0.00014697,2]
[421300174,1777395033552,-2214.31494407,0.00014697,2]
[421300175,1777395033561,-1589.64816895,0.00014697,2]
[421300176,1777395033601,-624.66677512,0.00014697,2]
[421300177,1777395033610,-2214.31494407,0.00014697,2]
[421300178,1777395033619,-1330.12633681,0.00014697,2]
[421300179,1777395033631,-884.18860726,0.00014697,2]
[421300180,1777395033640,-2214.31494407,0.00014697,2]
[421300181,1777395033649,-1455.38663535,0.00014697,2]
[421300215,1777395038744,-637.79875799,0.00014697,2]
[421300216,1777395038905,-121.12955073,0.00014697,2]
[421300217,1777395038916,-2214.31494407,0.00014697,2]
[421300218,1777395038926,-2214.31494407,0.00014697,2]
[421300219,1777395038936,-2214.31494407,0.00014697,2]
[421300220,1777395038946,-2214.31494407,0.00014697,2]
[421300221,1777395038956,-2214.31494407,0.00014697,2]
[421300222,1777395038966,-2214.31494407,0.00014697,2]
[421300223,1777395038976,-39060.3571171,0.00014698,2]
[421300224,1777395038986,-1686240.77734582,0.00014698,2]
[421300225,1777395038998,-2974.85912051,0.00014698,2]
[421300226,1777395039010,-10784.36353367,0.00014698,2]
[421300227,1777395039019,-234.96257579,0.00014699,2]
[421300228,1777395039029,-246.96680803,0.00014715,2]
[421300229,1777395039039,-151.0,0.0001479,2]
[421300230,1777395039048,-151.0,0.0001479,2]
[421300232,1777395039058,-151.0,0.0001479,2]
[421300233,1777395039067,-151.0,0.0001479,2]
[421300234,1777395039079,-151.0,0.0001479,2]
[421300235,1777395039089,-151.0,0.0001479,2]
[421300236,1777395039099,-151.0,0.0001479,2]
[421300237,1777395039109,-180.0,0.0001479,2]
[421300238,1777395039119,-151.0,0.0001479,2]
[421300239,1777395039129,-151.0,0.0001479,2]
[421300240,1777395039139,-151.0,0.0001479,2]
[421300241,1777395039149,-151.0,0.0001479,2]
[421300242,1777395039159,-151.0,0.0001479,2]
[421300243,1777395039169,-151.0,0.0001479,2]
[421300244,1777395039179,-151.0,0.0001479,2]
[421300245,1777395039188,-151.0,0.0001479,2]
[421300246,1777395039197,-151.0,0.0001479,2]
[421300247,1777395039207,-151.0,0.0001479,2]
[421300248,1777395039217,-151.0,0.0001479,2]
[421300249,1777395039226,-151.0,0.0001479,2]
[421300250,1777395039236,-151.0,0.0001479,2]
[421300251,1777395039245,-432.817,0.00014799,2]
[421300252,1777395039255,-151.0,0.000148,2]
[421300253,1777395039265,-20672.35856685,0.000148,2]
[421300254,1777395039275,-1561.0,0.000148,2]
[421300255,1777395039285,-420.0,0.0001481,2]
[421300256,1777395039296,-314.0,0.00014845,2]
[421300257,1777395039306,-314.0,0.00014845,2]
[421300258,1777395039316,-314.0,0.00014845,2]
[421300259,1777395039326,-151.0,0.000149,2]
[421300260,1777395039336,-1561.0,0.00015074,2]
[421300261,1777395039345,-2936.3513124,0.00015078,2]
[421300262,1777395039356,-6960.9684458,0.00015078,2]
[421300263,1777395039366,-151.0,0.000151,2]
[421300264,1777395039375,-600.0,0.00015195,2]
[421300265,1777395039385,-1561.0,0.00015348,2]
[421300266,1777395039395,-1000.0,0.000155,2]
[421300267,1777395039404,-151.0,0.000155,2]
[421300268,1777395039414,-1561.0,0.00015622,2]
[421300269,1777395039423,-160.0,0.00015647,2]
[421300270,1777395039433,-2852.89685604,0.000157,2]
[421300271,1777395039442,-791.0,0.000157,2]
[421300272,1777395039452,-537.6845,0.00015701,2]
[421300273,1777395039461,-2150.738,0.00015701,2]
[421300274,1777395039470,-557.5788265,0.00015756,2]
[421300275,1777395039480,-2852.89685604,0.000158,2]
[421300276,1777395039490,-151.0,0.000158,2]
[421300277,1777395039500,-578.20924308,0.00015811,2]
[421300278,1777395039509,-599.60298507,0.00015866,2]
[421300279,1777395039519,-1561.0,0.00015896,2]
[421300280,1777395039528,-621.78829552,0.00015921,2]
[421300281,1777395039538,-644.79446246,0.00015976,2]
[421300282,1777395039547,-2852.89685604,0.00016,2]
[421300283,1777395039557,-668.65185757,0.00016031,2]
[421300284,1777395039566,-693.3919763,0.00016086,2]
[421300285,1777395039576,-2852.89685604,0.000161,2]
[421300286,1777395039585,-151.0,0.000161,2]
[421300287,1777395039595,-719.04747942,0.00016141,2]
[421300288,1777395039605,-1561.0,0.0001617,2]
[421300289,1777395039616,-745.65223616,0.00016196,2]
[421300290,1777395039625,-505.0,0.00016234,2]
[421300291,1777395039635,-247.6739403,0.00016249,2]
[421300292,1777395039644,-773.2413689,0.00016251,2]
[421300293,1777395039654,-2852.89685604,0.000163,2]
[421300294,1777395039663,-801.85129955,0.00016306,2]
[421300295,1777395039673,-831.51979763,0.00016361,2]
[421300296,1777395039682,-862.28603014,0.00016416,2]
[421300297,1777395039692,-487.0,0.00016438,2]
[421300298,1777395039702,-376.3194912,0.00016438,2]
[421300299,1777395039712,-1689.01,0.00016444,2]
[421300300,1777395039722,-894.19061326,0.00016471,2]
[421300301,1777395039732,-2852.89685604,0.000165,2]
[421300302,1777395039741,-151.0,0.000165,2]
[421300303,1777395039751,-151.0,0.000165,2]
[421300304,1777395039760,-500.0,0.0001651,2]
[421300305,1777395039770,-927.27566595,0.00016526,2]
[421300306,1777395039780,-961.58486559,0.00016581,2]
[421300307,1777395039790,-2852.89685604,0.000166,2]
[421300308,1777395039800,-250.0,0.00016669,2]
[421300309,1777395039810,-487.0,0.00016712,2]
[421300310,1777395039819,-720.0,0.00016714,2]
[421300311,1777395039829,-284.63971095,0.00016715,2]
[421300312,1777395039839,-2852.89685604,0.000168,2]
[421300313,1777395039848,-151.0,0.000168,2]
[421300314,1777395039858,-127.21061125,0.00016986,2]
[421300315,1777395039871,-359.78938875,0.00016986,2]
[421300316,1777395039881,-1870.51898384,0.00017,2]
[421300317,1777395039891,-2852.89685604,0.00017,2]
[421300318,1777395039900,-19975.16142469,0.00017,10]
[421300319,1777395039910,-160.0,0.00017,10]
[421300320,1777395039919,-1553.2020041,0.00017061,2]
[421300321,1777395039929,-2852.89685604,0.000171,2]
[421300322,1777395039939,-500.0,0.000171,2]
[421300323,1777395039948,-2686.711005,0.0001713,2]
[421300324,1777395039957,-330.0,0.00017159,2]
[421300325,1777395039967,-1870.51898384,0.000172,2]
[421300326,1777395039976,-151.0,0.000172,2]
[421300327,1777395039986,-292.0,0.00017205,3]
[421300328,1777395039996,-487.0,0.0001726,2]
[421300329,1777395040006,-1870.51898384,0.000173,2]
[421300331,1777395040016,-400.0,0.00017329,2]
[421300332,1777395040025,-1870.51898384,0.000175,2]
[421300333,1777395040036,-151.0,0.000175,2]
[421300334,1777395040046,-346.5662119,0.00017503,2]
[421300335,1777395040055,-500.0,0.0001751,2]
[421300336,1777395040065,-487.0,0.00017534,2]
[421300337,1777395040074,-160.0,0.00017542,2]
[421300338,1777395040083,-2433.630486,0.00017542,2]
[421300339,1777395040093,-4707.260972,0.00017542,2]
[421300340,1777395040102,-160.0,0.00017542,2]
[421300341,1777395040112,-721.186683,0.00017542,2]
[421300343,1777395040378,-1282.373366,0.00017542,2]
[421300344,1777395040401,-3490.56771863,0.00017671,2]
[421300345,1777395040410,-1870.51898384,0.000177,2]
[421300346,1777395040421,-151.0,0.000177,2]
[421300347,1777395040430,-455.9805711,0.00017808,2]
[421300348,1777395040439,-487.0,0.00017808,2]
[421300349,1777395040449,-9820.66189049,0.000179,2]
[421300360,1777395041132,-54234.76532389,0.000179,2]
[421300375,1777395043897,-1000.0,0.000175,2]
[421300376,1777395043908,-2097.4470297,0.00017671,2]
[421300444,1777395047326,-1343.335675,0.00016,2]
[421300445,1777395047335,-1000.0,0.000165,2]
[421300446,1777395047344,-1000.0,0.00017,2]
[421300447,1777395047354,-1627.89613585,0.00017671,2]
[421300448,1777395047364,-644.5514843,0.000178,3]
[421300449,1777395047373,-10799.26981289,0.000179,2]
[421300453,1777395680852,-1723.11653632,0.00012,2]
[421300486,1777396231761,-5000.0,0.00011643,2]
[421300488,1777396231771,-586.0,0.00011761,2]
[421300490,1777396231780,-603.60556929,0.0001194,2]
[421300492,1777396231790,-3023.27548059,0.00012,2]
[421300494,1777396231799,-300.0,0.00012117,2]
[421300496,1777396231808,-92.68330012,0.00012117,2]
[421300498,1777396231819,-207.31669988,0.00012117,2]
[421300501,1777396231829,-300.0,0.00012117,2]
[421300504,1777396231839,-300.0,0.00012117,2]
[421300508,1777396231848,-300.0,0.00012117,2]
[421300512,1777396231857,-300.0,0.00012117,2]
[421300515,1777396231866,-300.0,0.00012117,2]
[421300518,1777396231875,-300.0,0.00012117,2]
[421300521,1777396231885,-300.0,0.00012117,2]
[421300524,1777396231894,-300.0,0.00012117,2]
[421300526,1777396231903,-300.0,0.00012117,2]
[421300528,1777396231913,-300.0,0.00012117,2]
[421300530,1777396231922,-300.0,0.00012117,2]
[421300532,1777396231930,-300.0,0.00012117,2]
[421300533,1777396231940,-300.0,0.00012117,2]
[421300536,1777396231950,-600.0,0.00012358,2]
[421300538,1777396231960,-720.0,0.00013594,2]
[421300540,1777396231970,-270.73859609,0.00013699,2]
[421300606,1777396238073,-729.26140391,0.00013699,2]
[421300607,1777396238083,-50.73859609,0.0001394,2]
[421300608,1777396238094,-661.51597567,0.0001394,2]
[421300609,1777396238104,-490.60623668,0.000144,2]
[421300610,1777396238116,-132.97787038,0.00014564,2]
[421300624,1777396240305,-688.02212962,0.00014564,2]
[421300625,1777396240315,-629.0,0.00014564,2]
[421300626,1777396240325,-864.0,0.00014954,2]
[421300627,1777396240334,-160.0,0.00015574,2]
[421300628,1777396240344,-258.85041235,0.00015698,3]
[421300629,1777396240353,-3168.38382679,0.00015839,2]
[421300630,1777396240362,-500.0,0.00015938,2]
[421300631,1777396240371,-585.89634691,0.00015938,2]
[421300632,1777396240380,-500.0,0.00015938,2]
[421300633,1777396240389,-502.16107718,0.00015938,2]
[421300634,1777396240399,-500.0,0.00015939,2]
[421300635,1777396240408,-500.0,0.00015939,2]
[421300636,1777396240417,-297.51170094,0.00015939,2]
[421300637,1777396240427,-500.0,0.00015939,2]
[421300638,1777396240436,-500.0,0.00015939,2]
[421300639,1777396240445,-500.0,0.00015939,2]
[421300640,1777396240455,-500.0,0.00015939,2]
[421300641,1777396240465,-500.0,0.00015939,2]
[421300642,1777396240474,-500.0,0.00015939,2]
[421300643,1777396240484,-500.0,0.00015939,2]
[421300644,1777396240494,-500.0,0.00015939,2]
[421300645,1777396240503,-406.88293625,0.00015939,2]
[421300646,1777396240513,-168.80717801,0.00015939,2]
[421300647,1777396240523,-2496.84266653,0.00015939,2]
[421300648,1777396240533,-2496.84266653,0.00015939,2]
[421300649,1777396240542,-2496.84266653,0.00015939,2]
[421300650,1777396240552,-2496.84266653,0.00015939,2]
[421300651,1777396240562,-2496.84266653,0.00015939,2]
[421300652,1777396240572,-2496.84266653,0.00015939,2]
[421300653,1777396240582,-2496.84266653,0.00015939,2]
[421300654,1777396240591,-2496.84266653,0.00015939,2]
[421300655,1777396240601,-2496.84266653,0.00015939,2]
[421300656,1777396240610,-2496.84266653,0.00015939,2]
[421300657,1777396240620,-2496.84266653,0.00015939,2]
[421300658,1777396240629,-2496.84266653,0.00015939,2]
[421300659,1777396240639,-2640.27830908,0.00015939,2]
[421300660,1777396240649,-2640.27830908,0.00015939,2]
[421300661,1777396240659,-2640.27830908,0.00015939,2]
[421300662,1777396240669,-2640.27830908,0.00015939,2]
[421300663,1777396240678,-2640.27830908,0.00015939,2]
[421300664,1777396240688,-2640.27830908,0.00015939,2]
[421300665,1777396240698,-16416.70253911,0.0001594,2]
[421300666,1777396240713,-4457.8,0.0001594,2]
[421300688,1777396243114,-1418.2253351,0.0001594,2]
[421300689,1777396243126,-1192.98266946,0.0001594,2]
[421300693,1777396246427,-1257.029997,0.0001594,2]
[421300696,1777396246690,-23318.35405373,0.0001594,2]
[421300697,1777396246702,-35038.91359268,0.0001594,2]
[421300775,1777397432231,-2065.1,0.00013,2]
[421300776,1777397432241,-604.0,0.00013,2]
[421300778,1777397432250,-595.9616906,0.00013087,2]
[421300780,1777397432260,-1000.0,0.00013699,2]
[421300782,1777397432269,-824.0,0.00014096,2]
[421300784,1777397432278,-442.0,0.00014125,2]
[421300786,1777397432287,-185.0,0.00014125,2]
[421300788,1777397432296,-171.37,0.0001452,2]
[421300790,1777397432306,-473.1107871,0.000147,2]
[421300792,1777397432315,-703.23479491,0.00015087,2]
[421300794,1777397432325,-300.0,0.000152,2]
[421300796,1777397432334,-346.253,0.00015424,2]
[421300798,1777397432344,-3168.38382679,0.00015539,2]
[421300800,1777397432353,-160.0,0.00015575,2]
[421300802,1777397432363,-500.0,0.00015636,2]
[421300804,1777397432373,-585.89634691,0.00015636,2]
[421300806,1777397432382,-500.0,0.00015636,2]
[421300807,1777397432392,-502.16107718,0.00015636,2]
[421300809,1777397432401,-406.88293625,0.00015637,2]
[421300811,1777397432410,-168.80717801,0.00015637,2]
[421300813,1777397432420,-1229.2245403,0.00015637,2]
[421300816,1777397432429,-1229.2245403,0.00015637,2]
[421300819,1777397432438,-1229.2245403,0.00015637,2]
[421300822,1777397432448,-1229.2245403,0.00015637,2]
[421300825,1777397432457,-1229.2245403,0.00015637,2]
[421300828,1777397432467,-1229.2245403,0.00015637,2]
[421300830,1777397432477,-1229.2245403,0.00015637,2]
[421300832,1777397432486,-1229.2245403,0.00015637,2]
[421300834,1777397432495,-1229.2245403,0.00015637,2]
[421300836,1777397432505,-1229.2245403,0.00015637,2]
[421300838,1777397432514,-1229.2245403,0.00015637,2]
[421300840,1777397432523,-1229.2245403,0.00015637,2]
[421300842,1777397432533,-1229.2245403,0.00015637,2]
[421300844,1777397432542,-1229.2245403,0.00015637,2]
[421300846,1777397432552,-1229.2245403,0.00015637,2]
[421300848,1777397432561,-1229.2245403,0.00015637,2]
[421300850,1777397432572,-1229.2245403,0.00015637,2]
[421300852,1777397432581,-1229.2245403,0.00015637,2]
[421300854,1777397432591,-2850.93856385,0.00015637,2]
[421300856,1777397432600,-2669.05475253,0.00015637,2]
[421300858,1777397432612,-181.88381132,0.00015637,2]
[421300860,1777397432621,-2850.93856385,0.00015637,2]
[421300862,1777397432631,-1834.02581867,0.00015637,2]
[421300864,1777397432642,-1016.91274518,0.00015637,2]
[421300866,1777397432651,-2850.93856385,0.00015637,2]
[421300868,1777397432661,-2850.93856385,0.00015637,2]
[421300870,1777397432670,-2850.93856385,0.00015637,2]
[421300872,1777397432679,-2850.93856385,0.00015637,2]
[421300874,1777397432688,-2850.93856385,0.00015637,2]
[421300876,1777397432697,-2850.93856385,0.00015637,2]
[421300878,1777397432705,-500.0,0.00015637,2]
[421300880,1777397432715,-188.27061265,0.00015637,2]
[421300882,1777397432724,-32234.30092045,0.00015638,2]
[421300884,1777397432735,-468.39541939,0.00015638,2]
[421300886,1777397432746,-1012.27440141,0.00015638,2]
[421300888,1777397432757,-3300.41824811,0.00015638,2]
[421300890,1777397432768,-6329.51878425,0.00015638,2]
[421300892,1777397432779,-2994.07694886,0.00015638,2]
[421300894,1777397432790,-420517.1507955,0.00015638,2]
[421300896,1777397432799,-2233.91860262,0.00015639,2]
[421300898,1777397432808,-160.0,0.00015686,2]
[421300900,1777397432817,-8943.35957374,0.00015739,2]
[421300902,1777397432828,-24819.35478958,0.00015739,2]
[421300905,1777397432840,-440.41335325,0.00015739,2]
[421300906,1777397432851,-913.64676378,0.00015739,2]
[421300908,1777397432862,-3992.67818282,0.00015739,2]
[421301025,1777397440613,-7849.34415232,0.00015739,2]
[421301026,1777397440670,-2179.23719662,0.00015739,2]
[421301027,1777397440680,-205.71899203,0.00015838,2]
[421301028,1777397440689,-3178.6765874,0.00015911,2]
[421301029,1777397440698,-2637.34659097,0.0001594,2]
[421301030,1777397440707,-500.0,0.0001594,2]
[421301031,1777397440717,-3000.0,0.00016,2]
[421301032,1777397440727,-3000.0,0.0001601,2]
[421301033,1777397440736,-3000.0,0.0001602,2]
[421301034,1777397440746,-1330.77063298,0.0001603,2]
[421301035,1777397440758,-1669.22936702,0.0001603,2]
[421301036,1777397440768,-615.92616973,0.0001604,2]
[421301037,1777397440780,-1968.89528436,0.0001604,2]
[421301083,1777397443142,-415.17854591,0.0001604,2]
[421301084,1777397443152,-228.82145409,0.00016144,2]
[421301085,1777397443304,-308.86304591,0.00016144,2]
[421301086,1777397443314,-459.47900561,0.00016199,2]
[421301087,1777397443323,-300.0,0.00016258,2]
[421301088,1777397443332,-300.0,0.00016258,2]
[421301089,1777397443342,-300.0,0.00016258,2]
[421301090,1777397443351,-300.0,0.00016258,2]
[421301091,1777397443360,-300.0,0.00016258,2]
[421301092,1777397443370,-300.0,0.00016258,2]
[421301093,1777397443379,-300.0,0.00016258,2]
[421301094,1777397443388,-300.0,0.00016258,2]
[421301095,1777397443397,-300.0,0.00016258,2]
[421301096,1777397443407,-300.0,0.00016258,2]
[421301097,1777397443416,-300.0,0.00016258,2]
[421301098,1777397443425,-300.0,0.00016258,2]
[421301099,1777397443435,-300.0,0.00016258,2]
[421301100,1777397443444,-300.0,0.00016258,2]
[421301101,1777397443453,-300.0,0.00016258,2]
[421301103,1777397443463,-600.0,0.00016258,2]
[421301105,1777397443472,-3168.38382677,0.00016325,2]